[Event "*** Titled Tuesday 3|2 Blitz"]
[Site "Chess.com"]
[Date "2016.03.01"]
[Round "6"]
[White "TheLancer"]
[Black "SenseiJulio"]
[Result "0-1"]
[WhiteElo "2407"]
[BlackElo "2607"]
[TimeControl "180+2"]
[EndTime "18:09:47 PST"]
[Termination "SenseiJulio won by resignation"]

1. e4 {[%clk 0:03:01.9]} 1... e6 {[%clk 0:02:57]} 2. d4 {[%clk 0:03:02.3]} 2...
d5 {[%clk 0:02:58.4]} 3. Nc3 {[%clk 0:03:03.8]} 3... Nf6 {[%clk 0:02:58.5]} 4.
Bg5 {[%clk 0:03:04.2]} 4... dxe4 {[%clk 0:02:59.3]} 5. Nxe4 {[%clk 0:03:05.3]}
5... Be7 {[%clk 0:03:00.9]} 6. Bxf6 {[%clk 0:02:55.8]} 6... gxf6 {[%clk
0:03:01.6]} 7. Nf3 {[%clk 0:02:53]} 7... f5 {[%clk 0:03:03.1]} 8. Nc3 {[%clk
0:02:53.7]} 8... a6 {[%clk 0:03:04.3]} 9. Bc4 {[%clk 0:02:49]} 9... b5 {[%clk
0:03:04]} 10. Bb3 {[%clk 0:02:50]} 10... c5 {[%clk 0:02:54.6]} 11. dxc5 {[%clk
0:02:44.8]} 11... Bxc5 {[%clk 0:02:33.8]} 12. Qxd8+ {[%clk 0:02:41.8]} 12...
Kxd8 {[%clk 0:02:35.7]} 13. Ne5 {[%clk 0:02:30.2]} 13... Ke7 {[%clk 0:02:30.4]}
14. Nd3 {[%clk 0:02:30.8]} 14... Bd4 {[%clk 0:02:25.1]} 15. a4 {[%clk
0:02:25.5]} 15... Bb7 {[%clk 0:02:12.8]} 16. f3 {[%clk 0:02:17.1]} 16... Bxc3+
{[%clk 0:02:05.6]} 17. bxc3 {[%clk 0:02:19]} 17... Rg8 {[%clk 0:02:05.5]} 18.
axb5 {[%clk 0:02:14.1]} 18... axb5 {[%clk 0:01:56.3]} 19. Rxa8 {[%clk 0:02:16]}
19... Bxa8 {[%clk 0:01:57.9]} 20. Kf2 {[%clk 0:02:14]} 20... Nd7 {[%clk
0:01:45.4]} 21. c4 {[%clk 0:02:11.4]} 21... bxc4 {[%clk 0:01:44]} 22. Bxc4
{[%clk 0:02:13.3]} 22... Rc8 {[%clk 0:01:43.8]} 23. Bb3 {[%clk 0:02:14.5]} 23...
Bc6 {[%clk 0:01:41.8]} 24. Re1 {[%clk 0:02:09.5]} 24... Bb5 {[%clk 0:01:38.6]}
25. Ne5 {[%clk 0:01:55.6]} 25... Nc5 {[%clk 0:01:39]} 26. Ba2 {[%clk 0:01:35]}
26... Na4 {[%clk 0:01:37.2]} 27. Bb3 {[%clk 0:01:32.8]} 27... Nc5 {[%clk
0:01:37.9]} 28. Ba2 {[%clk 0:01:33.8]} 28... Ra8 {[%clk 0:01:38]} 29. Bc4 {[%clk
0:01:24.5]} 29... Bxc4 {[%clk 0:01:28.5]} 30. Nxc4 {[%clk 0:01:25.1]} 30... Ra2
{[%clk 0:01:30.1]} 31. Ne3 {[%clk 0:01:22.5]} 31... Nd3+ {[%clk 0:01:30.4]} 32.
Ke2 {[%clk 0:01:18.3]} 32... Nxe1 {[%clk 0:01:31.6]} 33. Kxe1 {[%clk 0:01:19.9]}
33... f4 {[%clk 0:01:33.1]} 0-1

[Event "*** Titled Tuesday 3|2 Blitz"]
[Site "Chess.com"]
[Date "2016.03.01"]
[Round "6"]
[White "ArnaudovP"]
[Black "Quiet_Desperation"]
[Result "0-1"]
[WhiteElo "2294"]
[BlackElo "2249"]
[TimeControl "180+2"]
[EndTime "18:09:59 PST"]
[Termination "Quiet_Desperation won by resignation"]

1. d4 {[%clk 0:02:59.2]} 1... Nf6 {[%clk 0:03:00.5]} 2. c4 {[%clk 0:02:59.7]}
2... e6 {[%clk 0:03:02.1]} 3. Nc3 {[%clk 0:03:00]} 3... Bb4 {[%clk 0:03:02.6]}
4. Qc2 {[%clk 0:02:59.6]} 4... Nc6 {[%clk 0:03:03.1]} 5. Nf3 {[%clk 0:02:59.4]}
5... d6 {[%clk 0:03:03.8]} 6. Bd2 {[%clk 0:02:59.4]} 6... O-O {[%clk 0:03:04.5]}
7. a3 {[%clk 0:03:00.5]} 7... Bxc3 {[%clk 0:03:05.7]} 8. Bxc3 {[%clk 0:03:02.1]}
8... Qe7 {[%clk 0:03:06.9]} 9. e3 {[%clk 0:03:00.5]} 9... a5 {[%clk 0:03:05.6]}
10. Be2 {[%clk 0:03:00]} 10... e5 {[%clk 0:03:06.4]} 11. d5 {[%clk 0:03:00.4]}
11... Nb8 {[%clk 0:03:07.1]} 12. Nd2 {[%clk 0:02:59.1]} 12... Ne8 {[%clk
0:03:02.9]} 13. O-O {[%clk 0:02:58.3]} 13... f5 {[%clk 0:03:04]} 14. Rae1 {[%clk
0:02:58.4]} 14... Nf6 {[%clk 0:03:03.7]} 15. f4 {[%clk 0:02:59.1]} 15... e4
{[%clk 0:03:04.4]} 16. Kh1 {[%clk 0:02:58.3]} 16... a4 {[%clk 0:03:04.6]} 17.
Bd1 {[%clk 0:02:51.9]} 17... Nbd7 {[%clk 0:03:04]} 18. Rf2 {[%clk 0:02:46.8]}
18... Nc5 {[%clk 0:03:05.1]} 19. Be2 {[%clk 0:02:46.5]} 19... Ng4 {[%clk
0:03:00.8]} 20. Bxg4 {[%clk 0:02:44.1]} 20... fxg4 {[%clk 0:03:02.4]} 21. Rff1
{[%clk 0:02:40.5]} 21... Bf5 {[%clk 0:02:50.7]} 22. g3 {[%clk 0:02:38.7]} 22...
Nd3 {[%clk 0:02:49]} 23. Rd1 {[%clk 0:02:35.9]} 23... h5 {[%clk 0:02:50.3]} 24.
Kg2 {[%clk 0:02:35]} 24... Kf7 {[%clk 0:02:50.9]} 25. c5 {[%clk 0:02:28.6]}
25... h4 {[%clk 0:02:49.3]} 26. cxd6 {[%clk 0:02:28]} 26... cxd6 {[%clk
0:02:50.5]} 27. Nc4 {[%clk 0:02:28.7]} 27... Rh8 {[%clk 0:02:42.1]} 28. Bd4
{[%clk 0:02:11.8]} 28... Rh7 {[%clk 0:02:30.1]} 29. Rh1 {[%clk 0:02:07.2]} 29...
Rc8 {[%clk 0:02:00.9]} 30. Bb6 {[%clk 0:02:03.7]} 30... Qd7 {[%clk 0:01:46.4]}
31. b3 {[%clk 0:01:53.2]} 31... Kg8 {[%clk 0:01:42.1]} 32. bxa4 {[%clk
0:01:45.2]} 32... Qf7 {[%clk 0:01:30.6]} 33. Bd4 {[%clk 0:01:40.3]} 33... Qxd5
{[%clk 0:01:29.9]} 34. Rc1 {[%clk 0:01:37.7]} 34... Nxc1 {[%clk 0:01:28.6]} 35.
Rxc1 {[%clk 0:01:37.8]} 35... hxg3 {[%clk 0:01:29.9]} 36. hxg3 {[%clk
0:01:37.8]} 36... Be6 {[%clk 0:01:29.2]} 0-1

[Event "*** Titled Tuesday 3|2 Blitz"]
[Site "Chess.com"]
[Date "2016.03.01"]
[Round "6"]
[White "DanielNaroditsky"]
[Black "spectralsoul"]
[Result "1-0"]
[WhiteElo "2598"]
[BlackElo "2535"]
[TimeControl "180+2"]
[EndTime "18:11:08 PST"]
[Termination "DanielNaroditsky won by resignation"]

1. Nf3 {[%clk 0:03:01.9]} 1... Nf6 {[%clk 0:03:00.6]} 2. b4 {[%clk 0:03:01.9]}
2... c6 {[%clk 0:02:56.6]} 3. Bb2 {[%clk 0:03:02.9]} 3... a5 {[%clk 0:02:55.5]}
4. a3 {[%clk 0:02:54.1]} 4... e6 {[%clk 0:02:50.7]} 5. bxa5 {[%clk 0:02:39.3]}
5... Rxa5 {[%clk 0:02:51]} 6. e3 {[%clk 0:02:39.8]} 6... Be7 {[%clk 0:02:51.9]}
7. a4 {[%clk 0:02:37.3]} 7... O-O {[%clk 0:02:52.3]} 8. Bd3 {[%clk 0:02:37.6]}
8... d5 {[%clk 0:02:52.9]} 9. O-O {[%clk 0:02:38.8]} 9... Nbd7 {[%clk 0:02:54]}
10. Nd4 {[%clk 0:02:35.3]} 10... Ra8 {[%clk 0:02:51]} 11. f4 {[%clk 0:02:27.5]}
11... Nc5 {[%clk 0:02:47.6]} 12. Nc3 {[%clk 0:02:26.1]} 12... Nxd3 {[%clk
0:02:45.6]} 13. cxd3 {[%clk 0:02:27.4]} 13... Nd7 {[%clk 0:02:41.7]} 14. Qc2
{[%clk 0:02:19]} 14... Bf6 {[%clk 0:02:28.9]} 15. Nce2 {[%clk 0:02:15.6]} 15...
e5 {[%clk 0:02:19.9]} 16. Nf5 {[%clk 0:02:15]} 16... exf4 {[%clk 0:02:11.1]} 17.
Nxf4 {[%clk 0:02:14.9]} 17... Bxb2 {[%clk 0:02:10.3]} 18. Qxb2 {[%clk
0:02:14.9]} 18... f6 {[%clk 0:02:10.5]} 19. Ne6 {[%clk 0:02:15.3]} 19... Qa5
{[%clk 0:01:59.8]} 20. Nxf8 {[%clk 0:01:57.4]} 20... Kxf8 {[%clk 0:01:55.2]} 21.
Nd6 {[%clk 0:01:51.2]} 21... Qc7 {[%clk 0:01:37.3]} 22. Qb4 {[%clk 0:01:52.2]}
22... c5 {[%clk 0:01:33.5]} 23. Qf4 {[%clk 0:01:52.8]} 23... Qc6 {[%clk
0:01:26]} 24. Nb5 {[%clk 0:01:49.3]} 24... Kg8 {[%clk 0:01:15.8]} 25. Qc7 {[%clk
0:01:49.4]} 25... Ne5 {[%clk 0:01:12.1]} 26. Qd8+ {[%clk 0:01:46.8]} 26... Kf7
{[%clk 0:01:13.6]} 27. d4 {[%clk 0:01:40.1]} 27... Nc4 {[%clk 0:01:07.6]} 28.
Nc7 {[%clk 0:01:14.8]} 28... Rb8 {[%clk 0:01:02.9]} 29. Nxd5 {[%clk 0:01:14]}
29... Nxd2 {[%clk 0:00:55.9]} 30. Qe7+ {[%clk 0:01:02.3]} 30... Kg6 {[%clk
0:00:57.2]} 31. Nf4+ {[%clk 0:01:03.6]} 31... Kh6 {[%clk 0:00:58.6]} 32. d5
{[%clk 0:01:04.9]} 32... Qa6 {[%clk 0:00:51.7]} 33. Rf2 {[%clk 0:01:04.3]} 33...
Nb3 {[%clk 0:00:50.7]} 34. Raf1 {[%clk 0:01:02.1]} 34... Qxa4 {[%clk 0:00:45.5]}
35. Ne6 {[%clk 0:01:02.4]} 35... Bxe6 {[%clk 0:00:45.6]} 36. Rxf6+ {[%clk
0:01:01.4]} 36... gxf6 {[%clk 0:00:46.9]} 37. Rxf6+ {[%clk 0:01:01.5]} 1-0

[Event "*** Titled Tuesday 3|2 Blitz"]
[Site "Chess.com"]
[Date "2016.03.01"]
[Round "6"]
[White "Izoria123"]
[Black "dretch"]
[Result "0-1"]
[WhiteElo "2583"]
[BlackElo "2568"]
[TimeControl "180+2"]
[EndTime "18:11:13 PST"]
[Termination "dretch won by resignation"]

1. d4 {[%clk 0:03:01.9]} 1... d5 {[%clk 0:03:00.8]} 2. Bf4 {[%clk 0:03:02]} 2...
Nf6 {[%clk 0:03:00.7]} 3. e3 {[%clk 0:03:03.4]} 3... c5 {[%clk 0:03:02]} 4. dxc5
{[%clk 0:02:59.6]} 4... Nc6 {[%clk 0:03:01.8]} 5. Bb5 {[%clk 0:02:59.7]} 5...
Qa5+ {[%clk 0:02:59.4]} 6. Nc3 {[%clk 0:03:00.2]} 6... a6 {[%clk 0:02:59.9]} 7.
Bxc6+ {[%clk 0:03:00.9]} 7... bxc6 {[%clk 0:03:01.8]} 8. Qd4 {[%clk 0:02:51.5]}
8... e6 {[%clk 0:03:02.8]} 9. b4 {[%clk 0:02:43.2]} 9... Qa3 {[%clk 0:02:59.8]}
10. Nb1 {[%clk 0:01:33.8]} 10... Qc1+ {[%clk 0:02:49.7]} 11. Qd1 {[%clk
0:01:34.6]} 11... Qb2 {[%clk 0:02:26.2]} 12. Qd4 {[%clk 0:01:31.9]} 12... Qc1+
{[%clk 0:02:27.1]} 13. Qd1 {[%clk 0:01:33]} 13... Qxd1+ {[%clk 0:02:28.4]} 14.
Kxd1 {[%clk 0:01:33.9]} 14... a5 {[%clk 0:02:30]} 15. c3 {[%clk 0:01:31.8]}
15... Ne4 {[%clk 0:02:31]} 16. Ke1 {[%clk 0:01:19.3]} 16... g5 {[%clk
0:02:27.8]} 17. Be5 {[%clk 0:01:18.4]} 17... f6 {[%clk 0:02:28.3]} 18. f3 {[%clk
0:01:15.5]} 18... fxe5 {[%clk 0:02:21.3]} 19. fxe4 {[%clk 0:01:16.4]} 19... g4
{[%clk 0:02:20.8]} 20. a3 {[%clk 0:01:09.8]} 20... Bh6 {[%clk 0:02:19.2]} 21.
Nd2 {[%clk 0:00:55.7]} 21... Bxe3 {[%clk 0:02:09.5]} 22. Ne2 {[%clk 0:00:56.7]}
22... Rf8 {[%clk 0:01:59.4]} 23. Rf1 {[%clk 0:00:56.7]} 23... axb4 {[%clk
0:01:40.7]} 24. Rxf8+ {[%clk 0:00:56.3]} 24... Kxf8 {[%clk 0:01:42.6]} 25. cxb4
{[%clk 0:00:56.9]} 25... Ba6 {[%clk 0:01:41.2]} 26. Nf1 {[%clk 0:00:33.7]} 26...
Bg5 {[%clk 0:01:32.3]} 27. Nfg3 {[%clk 0:00:15.3]} 27... Ke7 {[%clk 0:01:31.4]}
28. h3 {[%clk 0:00:13.4]} 28... gxh3 {[%clk 0:01:30.6]} 29. gxh3 {[%clk
0:00:15.3]} 29... Bc4 {[%clk 0:01:29.6]} 30. Kf2 {[%clk 0:00:15.6]} 30... Rf8+
{[%clk 0:01:25.3]} 31. Kg2 {[%clk 0:00:16.1]} 31... Be3 {[%clk 0:01:17.9]} 32.
Rf1 {[%clk 0:00:15.8]} 32... Ra8 {[%clk 0:01:16.8]} 33. Rf3 {[%clk 0:00:11.8]}
33... Rxa3 {[%clk 0:01:15.6]} 34. Nf1 {[%clk 0:00:04.8]} 34... Bxe2 {[%clk
0:01:16.2]} 0-1

[Event "*** Titled Tuesday 3|2 Blitz"]
[Site "Chess.com"]
[Date "2016.03.01"]
[Round "6"]
[White "GMHess"]
[Black "Zazuliak"]
[Result "1-0"]
[WhiteElo "2616"]
[BlackElo "2338"]
[TimeControl "180+2"]
[EndTime "18:11:35 PST"]
[Termination "GMHess won by resignation"]

1. b3 {[%clk 0:03:01.9]} 1... Nf6 {[%clk 0:02:57.7]} 2. Bb2 {[%clk 0:03:03.8]}
2... g6 {[%clk 0:02:58.9]} 3. Bxf6 {[%clk 0:03:04.1]} 3... exf6 {[%clk
0:02:59.6]} 4. c4 {[%clk 0:03:06]} 4... Bg7 {[%clk 0:02:58.5]} 5. Nc3 {[%clk
0:03:07.2]} 5... f5 {[%clk 0:02:59.3]} 6. Rc1 {[%clk 0:03:07.9]} 6... O-O {[%clk
0:02:59.9]} 7. e3 {[%clk 0:03:09.4]} 7... Re8 {[%clk 0:02:57.3]} 8. Be2 {[%clk
0:03:09.7]} 8... b6 {[%clk 0:02:47.7]} 9. Nh3 {[%clk 0:03:07.6]} 9... Bb7 {[%clk
0:02:47.8]} 10. O-O {[%clk 0:03:08.6]} 10... Nc6 {[%clk 0:02:47.6]} 11. Bf3
{[%clk 0:03:09.2]} 11... Na5 {[%clk 0:02:47]} 12. Nf4 {[%clk 0:02:58.1]} 12...
Be5 {[%clk 0:02:35.7]} 13. Bxb7 {[%clk 0:02:41.6]} 13... Nxb7 {[%clk 0:02:35.3]}
14. Qf3 {[%clk 0:02:43.3]} 14... Nd6 {[%clk 0:02:17.9]} 15. d4 {[%clk
0:02:39.1]} 15... Bxf4 {[%clk 0:02:11]} 16. Qxf4 {[%clk 0:02:41]} 16... Ne4
{[%clk 0:02:11.2]} 17. c5 {[%clk 0:02:05.7]} 17... Nxc3 {[%clk 0:01:57.3]} 18.
Rxc3 {[%clk 0:02:07.6]} 18... b5 {[%clk 0:01:57.9]} 19. f3 {[%clk 0:01:56.5]}
19... c6 {[%clk 0:01:08.2]} 20. e4 {[%clk 0:01:54.1]} 20... fxe4 {[%clk
0:01:07.4]} 21. fxe4 {[%clk 0:01:56]} 21... Qe7 {[%clk 0:01:04]} 22. e5 {[%clk
0:01:56.5]} 22... Rf8 {[%clk 0:00:57.8]} 23. Rcf3 {[%clk 0:01:53.7]} 23... Rae8
{[%clk 0:00:44.2]} 24. Qh6 {[%clk 0:01:50.9]} 24... f5 {[%clk 0:00:32.4]} 25.
exf6 {[%clk 0:01:50]} 25... Qf7 {[%clk 0:00:32.7]} 26. h4 {[%clk 0:01:38.8]}
26... Re4 {[%clk 0:00:30.6]} 27. h5 {[%clk 0:01:32]} 27... Rg4 {[%clk
0:00:21.7]} 28. Rf4 {[%clk 0:01:20.2]} 28... gxh5 {[%clk 0:00:17.4]} 29. Rf5
{[%clk 0:01:06.1]} 29... Qg6 {[%clk 0:00:14.2]} 30. f7+ {[%clk 0:01:03.3]} 30...
Rxf7 {[%clk 0:00:10.5]} 31. Qxg6+ {[%clk 0:01:04.4]} 31... hxg6 {[%clk
0:00:09.6]} 32. Rxf7 {[%clk 0:01:06.3]} 32... Rxd4 {[%clk 0:00:11.2]} 33. Re7
{[%clk 0:01:04.1]} 33... Rd2 {[%clk 0:00:10.9]} 34. Rf6 {[%clk 0:01:03.2]} 34...
g5 {[%clk 0:00:09.7]} 1-0

[Event "*** Titled Tuesday 3|2 Blitz"]
[Site "Chess.com"]
[Date "2016.03.01"]
[Round "6"]
[White "djgwards"]
[Black "chesstatour"]
[Result "1-0"]
[WhiteElo "2247"]
[BlackElo "1991"]
[TimeControl "180+2"]
[EndTime "18:11:58 PST"]
[Termination "djgwards won by resignation"]

1. d4 {[%clk 0:03:01.9]} 1... Nf6 {[%clk 0:03:00.1]} 2. c4 {[%clk 0:03:02.5]}
2... e6 {[%clk 0:03:00.9]} 3. Nc3 {[%clk 0:03:00.9]} 3... Bb4 {[%clk 0:02:58.6]}
4. e3 {[%clk 0:03:02.4]} 4... O-O {[%clk 0:02:58.1]} 5. Bd3 {[%clk 0:02:57.9]}
5... d5 {[%clk 0:02:59.3]} 6. a3 {[%clk 0:02:54.5]} 6... Be7 {[%clk 0:02:54]} 7.
Nf3 {[%clk 0:02:54.7]} 7... c5 {[%clk 0:02:35.4]} 8. cxd5 {[%clk 0:02:49]} 8...
Nxd5 {[%clk 0:02:34.3]} 9. O-O {[%clk 0:02:48]} 9... cxd4 {[%clk 0:02:26.4]} 10.
Nxd4 {[%clk 0:02:47.7]} 10... Nc6 {[%clk 0:02:28]} 11. Nxc6 {[%clk 0:02:40.8]}
11... bxc6 {[%clk 0:02:29.9]} 12. Qc2 {[%clk 0:02:40.2]} 12... g6 {[%clk
0:02:22.2]} 13. Rd1 {[%clk 0:02:39.2]} 13... Bf6 {[%clk 0:01:42.5]} 14. Ne4
{[%clk 0:02:38.3]} 14... Bg7 {[%clk 0:01:38.2]} 15. Nc5 {[%clk 0:02:39.3]} 15...
Qe7 {[%clk 0:01:18.6]} 16. e4 {[%clk 0:02:37.1]} 16... Nb6 {[%clk 0:01:13.7]}
17. Be3 {[%clk 0:02:17.7]} 17... e5 {[%clk 0:00:58.6]} 18. Rac1 {[%clk 0:02:12]}
18... Nd7 {[%clk 0:00:32.9]} 19. Nxd7 {[%clk 0:02:03.9]} 19... Bxd7 {[%clk
0:00:25.2]} 20. Bc5 {[%clk 0:02:04.3]} 20... Qe6 {[%clk 0:00:26.1]} 21. Bxf8
{[%clk 0:02:00.1]} 21... Rxf8 {[%clk 0:00:21.7]} 22. Bc4 {[%clk 0:02:00.3]}
22... Qe7 {[%clk 0:00:22.1]} 23. Qd3 {[%clk 0:01:56.1]} 23... Bc8 {[%clk
0:00:22.9]} 24. Qd6 {[%clk 0:01:55.9]} 24... Qg5 {[%clk 0:00:19.6]} 25. Qxc6
{[%clk 0:01:55.7]} 25... Bh3 {[%clk 0:00:19.9]} 26. Bf1 {[%clk 0:01:55.7]} 26...
h5 {[%clk 0:00:19.7]} 27. Rc3 {[%clk 0:01:53.6]} 27... Be6 {[%clk 0:00:18]} 28.
Rcd3 {[%clk 0:01:40.5]} 28... Rc8 {[%clk 0:00:13.8]} 29. Qa4 {[%clk 0:01:28.9]}
29... h4 {[%clk 0:00:12.6]} 30. h3 {[%clk 0:01:28.8]} 30... Kh7 {[%clk
0:00:11.1]} 31. b4 {[%clk 0:01:19.7]} 31... Qf4 {[%clk 0:00:11.2]} 32. b5 {[%clk
0:01:19.4]} 32... Rc4 {[%clk 0:00:11]} 33. Qxa7 {[%clk 0:01:18.8]} 33... Rxe4
{[%clk 0:00:10.4]} 34. b6 {[%clk 0:01:17.6]} 34... Rd4 {[%clk 0:00:08.9]} 35. b7
{[%clk 0:01:13.6]} 35... Rxd3 {[%clk 0:00:05.8]} 36. Bxd3 {[%clk 0:01:11.5]}
36... e4 {[%clk 0:00:07.2]} 37. b8=Q {[%clk 0:01:11.3]} 37... Be5 {[%clk
0:00:08.1]} 38. Qxe5 {[%clk 0:01:08.5]} 38... Qxe5 {[%clk 0:00:09.3]} 39. Qe3
{[%clk 0:00:59.2]} 39... Bf5 {[%clk 0:00:06.1]} 40. Re1 {[%clk 0:00:53.5]} 1-0

[Event "*** Titled Tuesday 3|2 Blitz"]
[Site "Chess.com"]
[Date "2016.03.01"]
[Round "6"]
[White "TheMagician"]
[Black "Rating-Schmating"]
[Result "1-0"]
[WhiteElo "2153"]
[BlackElo "2260"]
[TimeControl "180+2"]
[EndTime "18:12:02 PST"]
[Termination "TheMagician won by checkmate"]

1. b3 {[%clk 0:03:00.3]} 1... e6 {[%clk 0:03:00.6]} 2. Bb2 {[%clk 0:03:01.6]}
2... d5 {[%clk 0:02:58.9]} 3. f4 {[%clk 0:03:00.4]} 3... c5 {[%clk 0:02:58.8]}
4. e3 {[%clk 0:03:01.3]} 4... Nc6 {[%clk 0:02:58.8]} 5. Bb5 {[%clk 0:03:01.4]}
5... Nf6 {[%clk 0:02:58.7]} 6. Bxc6+ {[%clk 0:02:57]} 6... bxc6 {[%clk
0:02:59.7]} 7. Nf3 {[%clk 0:02:58.2]} 7... Ba6 {[%clk 0:03:00.8]} 8. Ne5 {[%clk
0:02:53.4]} 8... Qc7 {[%clk 0:03:00]} 9. d3 {[%clk 0:02:47.4]} 9... Bd6 {[%clk
0:03:00.1]} 10. Nd2 {[%clk 0:02:46.7]} 10... Nd7 {[%clk 0:03:00.9]} 11. Nxd7
{[%clk 0:02:43.1]} 11... Qxd7 {[%clk 0:02:57.7]} 12. O-O {[%clk 0:02:43.3]}
12... f6 {[%clk 0:02:57.2]} 13. c4 {[%clk 0:02:40.6]} 13... O-O {[%clk 0:02:57]}
14. e4 {[%clk 0:02:40.4]} 14... e5 {[%clk 0:02:52.3]} 15. f5 {[%clk 0:02:36.5]}
15... Kh8 {[%clk 0:02:45.5]} 16. Qh5 {[%clk 0:02:35.9]} 16... Qf7 {[%clk
0:02:45.7]} 17. Qh4 {[%clk 0:02:35.1]} 17... g6 {[%clk 0:02:38.1]} 18. Rf3
{[%clk 0:02:13.2]} 18... gxf5 {[%clk 0:02:36.6]} 19. Rxf5 {[%clk 0:02:10.8]}
19... Bc8 {[%clk 0:02:35.8]} 20. Raf1 {[%clk 0:02:08.5]} 20... Bxf5 {[%clk
0:02:34.7]} 21. Rxf5 {[%clk 0:02:09.4]} 21... d4 {[%clk 0:02:34.9]} 22. Nf3
{[%clk 0:02:04.1]} 22... Qg6 {[%clk 0:02:35.2]} 23. Bc1 {[%clk 0:02:00.3]} 23...
Rg8 {[%clk 0:02:35.7]} 24. Qh3 {[%clk 0:01:59.7]} 24... Raf8 {[%clk 0:02:33.4]}
25. Rh5 {[%clk 0:01:53.1]} 25... Rf7 {[%clk 0:02:29.8]} 26. Rh6 {[%clk
0:01:53.2]} 26... Qg4 {[%clk 0:02:28.4]} 27. Qxg4 {[%clk 0:01:53.6]} 27... Rxg4
{[%clk 0:02:29.5]} 28. Rh5 {[%clk 0:01:54.1]} 28... a5 {[%clk 0:02:26.3]} 29. g3
{[%clk 0:01:39.7]} 29... a4 {[%clk 0:02:26.7]} 30. Kg2 {[%clk 0:01:40.2]} 30...
axb3 {[%clk 0:02:27.7]} 31. axb3 {[%clk 0:01:41.6]} 31... Rg8 {[%clk 0:02:29.3]}
32. Bh6 {[%clk 0:01:36.9]} 32... Bf8 {[%clk 0:02:29.1]} 33. Bxf8 {[%clk
0:01:35.8]} 33... Rgxf8 {[%clk 0:02:30]} 34. Rf5 {[%clk 0:01:37.3]} 34... Rb8
{[%clk 0:02:30.7]} 35. Nxe5 {[%clk 0:01:38.6]} 35... Rff8 {[%clk 0:02:26]} 36.
Nd7 {[%clk 0:01:39.3]} 36... Rfd8 {[%clk 0:02:22.6]} 37. Nxb8 {[%clk 0:01:39.7]}
37... Rxb8 {[%clk 0:02:24]} 38. Rxf6 {[%clk 0:01:38.3]} 38... Rxb3 {[%clk
0:02:25]} 39. Rxc6 {[%clk 0:01:39.7]} 39... Rxd3 {[%clk 0:02:26.7]} 40. Rxc5
{[%clk 0:01:40.9]} 40... Kg7 {[%clk 0:02:28.1]} 41. Rd5 {[%clk 0:01:40]} 41...
Kf6 {[%clk 0:02:29.1]} 42. h4 {[%clk 0:01:40.1]} 42... Ke6 {[%clk 0:02:30.2]}
43. Kh3 {[%clk 0:01:41]} 43... Rd1 {[%clk 0:02:30]} 44. c5 {[%clk 0:01:41.9]}
44... d3 {[%clk 0:02:31.4]} 45. c6 {[%clk 0:01:42.7]} 45... d2 {[%clk
0:02:32.8]} 46. c7 {[%clk 0:01:42.4]} 46... Rc1 {[%clk 0:02:25.5]} 47. Rxd2
{[%clk 0:01:43.5]} 47... Rxc7 {[%clk 0:02:26.6]} 48. Kg4 {[%clk 0:01:42.7]}
48... Ke5 {[%clk 0:02:27]} 49. Kh5 {[%clk 0:01:38.2]} 49... Rg7 {[%clk
0:02:23.8]} 50. Rg2 {[%clk 0:01:34.9]} 50... Kxe4 {[%clk 0:02:24.2]} 51. g4
{[%clk 0:01:34.7]} 51... Kf4 {[%clk 0:02:25]} 52. Rf2+ {[%clk 0:01:35.2]} 52...
Kg3 {[%clk 0:02:25.4]} 53. Ra2 {[%clk 0:01:36]} 53... Kf4 {[%clk 0:02:23.5]} 54.
Ra4+ {[%clk 0:01:32]} 54... Ke5 {[%clk 0:02:24.4]} 55. g5 {[%clk 0:01:33.3]}
55... Rb7 {[%clk 0:02:22.4]} 56. Ra6 {[%clk 0:01:33.3]} 56... Kf5 {[%clk
0:02:22.8]} 57. Rf6+ {[%clk 0:01:33.9]} 57... Ke5 {[%clk 0:02:23.9]} 58. Kh6
{[%clk 0:01:34.2]} 58... Rc7 {[%clk 0:02:20.8]} 59. h5 {[%clk 0:01:35.1]} 59...
Rb7 {[%clk 0:02:19.8]} 60. Rf8 {[%clk 0:01:35.5]} 60... Ke6 {[%clk 0:02:15.4]}
61. g6 {[%clk 0:01:34.2]} 61... hxg6 {[%clk 0:02:15.9]} 62. hxg6 {[%clk
0:01:35.2]} 62... Rb1 {[%clk 0:02:16.5]} 63. Kg7 {[%clk 0:01:31.9]} 63... Ke7
{[%clk 0:02:16.6]} 64. Rf5 {[%clk 0:01:30]} 64... Ke6 {[%clk 0:02:16.4]} 65.
Rf6+ {[%clk 0:01:31.2]} 65... Ke7 {[%clk 0:02:17.3]} 66. Rf4 {[%clk 0:01:32.8]}
66... Re1 {[%clk 0:02:16.4]} 67. Rh4 {[%clk 0:01:32]} 67... Re2 {[%clk
0:02:16.4]} 68. Kh7 {[%clk 0:01:32.9]} 68... Re4 {[%clk 0:02:06.3]} 69. Rxe4+
{[%clk 0:01:32.7]} 69... Kf6 {[%clk 0:02:06.1]} 70. g7 {[%clk 0:01:33.1]} 70...
Kf5 {[%clk 0:02:08]} 71. Re8 {[%clk 0:01:34.1]} 71... Kf6 {[%clk 0:02:09.9]} 72.
g8=Q {[%clk 0:01:34.2]} 72... Kf5 {[%clk 0:02:11.8]} 73. Qg6+ {[%clk 0:01:35.4]}
73... Kf4 {[%clk 0:02:13.7]} 74. Re4+ {[%clk 0:01:36.6]} 74... Kf3 {[%clk
0:02:15.4]} 75. Qg4+ {[%clk 0:01:38.2]} 75... Kf2 {[%clk 0:02:17.3]} 76. Re2+
{[%clk 0:01:39.6]} 76... Kf1 {[%clk 0:02:19.2]} 77. Qg2# {[%clk 0:01:41]} 1-0